Workbook

Sheet с 7 до 11 лет
A2: День: понедельник | E2: Сезон: 01.09-01.03 (2025-2026гг)
A3: Неделя: 1 | E3: Возраст: с 7 до 11 лет
A5: № | B5: Наименование блюда | E5: масса | F5: Пищевые вещества (г) | I5: энерге- | J5: Витамины | M5: Минеральные вещества (мг)
F6: Б | G6: Ж | H6: У | I6: тическая | J6: В1 | K6: С | L6: А | M6: Са | N6: Р | O6: Мg | P6: Fe
I7: ценность
B8: Завтрак
A9: 19 | B9: Салат из моркови | E9: 80 | F9: 1.6 | G9: 7.2 | H9: 4.23 | I9: 74.4 | J9: 0 | K9: 0.07 | L9: 21 | M9: 100 | N9: 60 | O9: 5.5 | P9: 0.07
A10: 98 | B10: Котлеты из говядины 60/40 | E10: 130 | F10: 13.09 | G10: 18.2 | H10: 13.4 | I10: 259.1 | J10: 0.07 | K10: 0.29 | L10: 40.5 | M10: 34.65 | N10: 162.2 | O10: 28.56 | P10: 1.48
A11: 212 | B11: Макаронные изделия отварные | E11: 155 | F11: 5.82 | G11: 4.31 | H11: 37.08 | I11: 210.5 | J11: 0.09 | K11: 0 | L11: 24 | M11: 11.15 | N11: 46.26 | O11: 8.18 | P11: 0.83
A12: 311 | B12: Кисель Валетек | E12: 200 | F12: 0.25 | G12: 0 | H12: 4.8 | I12: 20 | J12: 0.43 | K12: 25 | L12: 0 | M12: 0 | N12: 0 | O12: 0 | P12: 0
A13: СГР | B13: Хлеб пшеничный для детского питания | E13: 50 | F13: 4 | G13: 0 | H13: 7.81 | I13: 39.06 | J13: 0.13 | K13: 0 | L13: 0 | M13: 9.2 | N13: 34.8 | O13: 13.2 | P13: 0.8
B14: Фрукты | E14: 200 | F14: 1 | G14: 0 | H14: 7 | I14: 34 | J14: 0.05 | K14: 34.2 | L14: 0 | M14: 31.5 | N14: 15.3 | O14: 9.9 | P14: 0.09
B15: Итого за завтрак | E15: 785 | F15: =SUM(F9:F14) -> 25.76 | G15: 29.71 | H15: 74.32 | I15: 637.06 | J15: 0.77 | K15: 59.56 | L15: 85.5 | M15: 186.5 | N15: 318.56 | O15: 65.34 | P15: 3.27
B16: Обед
A17: 6 | B17: Салат из белокочанной капусты с яблоками | E17: 80 | F17: 1.3 | G17: 4.1 | H17: 7.6 | I17: 72 | J17: 0.05 | K17: 30.6 | L17: 0.03 | M17: 14.31 | N17: 25.4 | O17: 14.53 | P17: 0.45
A18: 54 | B18: Рассольник Ленинградский на м/б со сметаной | E18: 210 | F18: 4.024 | G18: 9.04 | H18: 25.9 | I18: 119.68 | J18: 0.12 | K18: 21.44 | L18: 7.61 | M18: 33.08 | N18: 158.78 | O18: 34.36 | P18: 2.52
A19: 112 | B19: Плов из говядины | E19: 180 | F19: 17.89 | G19: 17.34 | H19: 26.48 | I19: 336 | J19: 0.08 | K19: 1.35 | L19: 0 | M19: 14.02 | N19: 178.97 | O19: 41.8 | P19: 1.97
A20: 294 | B20: Компот из сухофруктов | E20: 200 | F20: 0.12 | G20: 0 | H20: 19.4 | I20: 79.6 | J20: 0.07 | K20: 0.29 | L20: 0 | M20: 14.32 | N20: 0 | O20: 8.5 | P20: 0.92
A21: СГР | B21: Хлеб пшеничный | E21: 25 | F21: 2 | G21: 0 | H21: 10 | I21: 50 | J21: 0.04 | K21: 0 | L21: 0 | M21: 5.75 | N21: 21.75 | O21: 8.25 | P21: 0.5
A22: СГР | B22: Хлеб ржано- пшеничный | E22: 25 | F22: 2 | G22: 0 | H22: 10 | I22: 50 | J22: 0.04 | K22: 0 | L22: 0 | M22: 7.25 | N22: 32.5 | O22: 10.5 | P22: 0.9
B23: Итого за обед | F23: 27.334 | G23: 30.48 | H23: 99.38 | I23: 707.28 | J23: =SUM(J17:J22) -> 0.4 | K23: 53.68 | L23: 7.64 | M23: 88.73 | N23: 417.4 | O23: 117.94 | P23: 7.26
B24: Итого за день | F24: 53.284 | G24: 54.99 | H24: 170.67 | I24: 1284.57 | J24: 1.11 | K24: 113.24 | L24: 174.23 | M24: 275.23 | N24: 735.96 | O24: 183.28 | P24: 10.53
A26: День: вторник | E26: Сезон: 01.09-01.03 (2025-2026гг)
A27: Неделя: 1 | E27: Возраст: с 7 до 11 лет
A28: № | B28: Наименование блюда | E28: масса | F28: Пищевые вещества (г) | I28: энерге- | J28: Витамины | M28: Минеральные вещества (мг)
A29: рец. | E29: порций | F29: Б | G29: Ж | H29: У | I29: тическая | J29: В1 | K29: С | L29: А | M29: Са | N29: Р | O29: Мg | P29: Fe
I30: ценность
B31: Завтрак
A32: 181 | B32: Каша рисовая молочная | E32: 185 | F32: 4.61 | G32: 5.96 | H32: 29.35 | I32: 189.12 | J32: 0.26 | K32: 0 | L32: 0 | M32: 95.36 | N32: 0 | O32: 64.5 | P32: 3.7
A33: 3 | B33: Масло сливочное | E33: 10 | F33: 0.1 | G33: 7.13 | H33: 0.1 | I33: 66 | J33: 0 | K33: 0 | L33: 40 | M33: 0.5 | N33: 3 | O33: 3.96 | P33: 0.24
A34: СГР | B34: Хлеб пшеничный для детского питания | E34: 50 | F34: 4 | G34: 0 | H34: 7.81 | I34: 39.06 | J34: 0.09 | K34: 0 | L34: 0 | M34: 10.2 | N34: 35.8 | O34: 14.2 | P34: 1
A35: 283 | B35: Чай с сахаром | E35: 200 | F35: 0.1 | G35: 0 | H35: 9.1 | I35: 35 | J35: 0 | K35: 0 | L35: 0 | M35: 0.45 | N35: 0 | O35: 0 | P35: 0.05
B36: Фрукты | E36: 200 | F36: 1 | G36: 0 | H36: 7 | I36: 34 | J36: 0.05 | K36: 34.2 | L36: 0 | M36: 31.5 | N36: 15.3 | O36: 9.9 | P36: 0.09
B37: Итого за завтрак | F37: 9.81 | G37: 13.09 | H37: 53.36 | I37: 363.18 | J37: =SUM(J32:J36) -> 0.4 | K37: 34.2 | L37: 40 | M37: 138.01 | N37: 54.1 | O37: 92.56 | P37: 5.08
B38: Обед
A39: 40 | B39: Салат Степной | E39: 80 | F39: 1.28 | G39: 4.17 | H39: 7.01 | I39: 71.34 | J39: 0.02 | K39: 3.5 | L39: 0 | M39: 8.8 | N39: 0.49 | O39: 8.5 | P39: 0.25
A40: 56 | B40: Бишбармак | E40: 200 | F40: 2.08 | G40: 3.44 | H40: 9.28 | I40: 76.8 | J40: 0.016 | K40: 0.48 | L40: 25.76 | M40: 9.3 | N40: 134.18 | O40: 20.93 | P40: 5.7
A41: 96 | B41: Гуляш из отварного мяса | E41: 90 | F41: 11.35 | G41: 11.8 | H41: 2.1 | I41: 160.06 | J41: 0.04 | K41: 1.62 | L41: 0 | M41: 8.79 | N41: 101.41 | O41: 15.23 | P41: 1.46
A42: 222 | B42: Каша пшенная рассыпчатая с маслом | E42: 150 | F42: 6.5 | G42: 6.42 | H42: 39.08 | I42: 241.08 | J42: 0.3 | K42: 0 | L42: 20 | M42: 20.15 | N42: 165.07 | O42: 58.27 | P42: 1.91
A43: 295 | B43: Компот из плодов яблок | E43: 200 | F43: 0.2 | G43: 0 | H43: 17.2 | I43: 68 | J43: 0.01 | K43: 20.2 | L43: 0 | M43: 6.76 | N43: 4.4 | O43: 3.6 | P43: 0.92
A44: СГР | B44: Хлеб пшеничный | E44: 25 | F44: 2 | G44: 0 | H44: 10 | I44: 50 | J44: 0.04 | K44: 0 | L44: 0 | M44: 5.75 | N44: 21.75 | O44: 8.25 | P44: 0.5
A45: СГР | B45: Хлеб ржано- пшеничный | E45: 25 | F45: 2 | G45: 0 | H45: 10 | I45: 50 | J45: 0.04 | K45: 0 | L45: 0 | M45: 7.25 | N45: 32.5 | O45: 10.5 | P45: 0.9
B46: Итого за обед | F46: 25.41 | G46: 21.66 | H46: 94.67 | I46: 717.28 | J46: =SUM(J39:J45) -> 0.466 | K46: =SUM(K39:K45) -> 25.8 | L46: 45.76 | M46: 66.8 | N46: 459.8 | O46: 125.28 | P46: 11.64
B47: Итого за день | F47: 35.22 | G47: 34.75 | H47: 148.03 | I47: 1080.46 | J47: 1.1 | K47: 30.52 | L47: 96.66 | M47: 209.57 | N47: 522.6 | O47: 223.23 | P47: 13.67
A49: День: среда | E49: Сезон: 01.09-01.03 (2025-2026гг)
A50: Неделя: 1 | E50: Возраст: с 7 до 11 лет
A51: № | B51: Наименование блюда | E51: масса | F51: Пищевые вещества (г) | I51: энерге- | J51: Витамины | M51: Минеральные вещества (мг)
A52: рец. | E52: порций | F52: Б | G52: Ж | H52: У | I52: тическая | J52: В1 | K52: С | L52: А | M52: Са | N52: Р | O52: Мg | P52: Fe
I53: ценность
B54: Завтрак
A55: 80 | B55: Рыба,тушенная в томате с овощами | E55: 140 | F55: 18.13 | G55: 5.73 | H55: 4.44 | I55: 142.69 | J55: 0.05 | K55: 0.3 | L55: 0 | M55: 26.6 | N55: 121.66 | O55: 17.48 | P55: 0.46
A56: 138 | B56: Пюре картофельное | E56: 150 | F56: 3 | G56: 4.6 | H56: 20.1 | I56: 136.2 | J56: 0.12 | K56: 10.38 | L56: 28.8 | M56: 35.6 | N56: 98.22 | O56: 33.03 | P56: 1.2
A57: 289 | B57: Какао с молоком | E57: 200 | F57: 3.6 | G57: 3.3 | H57: 13.7 | I57: 98 | J57: 0.03 | K57: 0.52 | L57: 15.96 | M57: 110.37 | N57: 109.42 | O57: 26.97 | P57: 0.88
A58: СГР | B58: Хлеб пшеничный для детского питания | E58: 50 | F58: 4 | G58: 0 | H58: 7.81 | I58: 39.06 | J58: 0.09 | K58: 0 | L58: 0 | M58: 10.2 | N58: 35.8 | O58: 14.2 | P58: 1
B59: Фрукты | E59: 200 | F59: 1 | G59: 0 | H59: 7 | I59: 34 | J59: 0.05 | K59: 34.2 | L59: 0 | M59: 31.5 | N59: 15.3 | O59: 9.9 | P59: 0.09
B60: Итого за завтрак | E60: =SUM(E55:E59) -> 740 | F60: 29.73 | G60: 13.63 | H60: 52.95 | I60: 446.75 | J60: 0.34 | K60: 45.4 | L60: 44.76 | M60: 214.27 | N60: 380.4 | O60: 101.58 | P60: 3.63
B61: Обед
A62: 23 | B62: Салат из свеклы с растительным маслом | E62: 80 | F62: 1 | G62: 5.9 | H62: 4.8 | I62: 76 | J62: 0.01 | K62: 1.49 | L62: 1.36 | M62: 27.69 | N62: 17.76 | O62: 14.92 | P62: 0.96
A63: 44 | B63: Суп из овощей на мясном бульне со сметаной | E63: 210 | F63: 1.54 | G63: 4.69 | H63: 10.07 | I63: 92.19 | J63: 0.1 | K63: 17.47 | L63: 7.62 | M63: 30.07 | N63: 155.45 | O63: 30.18 | P63: 2.43
A64: 92 | B64: Бефстроганов | E64: 100 | F64: 14 | G64: 17.5 | H64: 3.75 | I64: 228.75 | J64: 0.04 | K64: 0.19 | L64: 2.3 | M64: 21.4 | N64: 197.58 | O64: 17.9 | P64: 2.1
A65: 212 | B65: Отварные макаронные изделия | E65: 155 | F65: 5.82 | G65: 4.31 | H65: 37.08 | I65: 210.5 | J65: 0.006 | K65: 0 | L65: 17.7 | M65: 9.31 | N65: 40.57 | O65: 7.31 | P65: 0.74
A66: 294 | B66: Компот из сухофруктов | E66: 200 | F66: 0.12 | G66: 0 | H66: 19.4 | I66: 79.6 | J66: 0.07 | K66: 0.29 | L66: 0 | M66: 14.32 | N66: 0 | O66: 8.5 | P66: 0.92
A67: СГР | B67: Хлеб пшеничный | E67: 25 | F67: 2 | G67: 0 | H67: 10 | I67: 50 | J67: 0.04 | K67: 0 | L67: 0 | M67: 5.75 | N67: 21.75 | O67: 8.25 | P67: 0.5
A68: СГР | B68: Хлеб ржано-пшеничный | E68: 25 | F68: 2 | G68: 0 | H68: 10 | I68: 50 | J68: 0.04 | K68: 0 | L68: 0 | M68: 7.25 | N68: 32.5 | O68: 10.5 | P68: 0.9
B69: Итого за обед | E69: 795 | F69: =SUM(F62:F68) -> 26.48 | G69: 32.4 | H69: 95.1 | I69: 787.04 | J69: 0.306 | K69: 19.44 | L69: 28.98 | M69: 115.79 | N69: 465.61 | O69: 97.56 | P69: 8.55
B70: Итого за день | F70: 56.01 | G70: 45.83 | H70: 148.05 | I70: 1233.79 | J70: 0.66 | K70: 88.94 | L70: 105.7 | M70: 374.12 | N70: 823.87 | O70: 221.63 | P70: 11.94
A72: День: четверг | E72: Сезон: 01.09-01.03 (2025-2026гг)
A73: Неделя: 1 | E73: Возраст: с 7 до 11 лет
A74: № | B74: Наименование блюда | E74: масса | F74: Пищевые вещества (г) | I74: энерге- | J74: Витамины | M74: Минеральные вещества (мг)
A75: рец. | E75: порций | F75: Б | G75: Ж | H75: У | I75: тическая | J75: В1 | K75: С | L75: А | M75: Са | N75: Р | O75: Мg | P75: Fe
I76: ценность
B77: Завтрак
A78: 1 | B78: Сыр (порциями) | E78: 10 | F78: 2.44 | G78: 2.36 | H78: 0 | I78: 31 | J78: 0 | K78: 0.07 | L78: 21 | M78: 100 | N78: 60 | O78: 5.5 | P78: 0.07
A79: 196 | B79: Каша "Дружба" с маслом | E79: 185 | F79: 5.94 | G79: 7.56 | H79: 31.84 | I79: 218.76 | J79: 0.01 | K79: 0.047 | L79: 1.8 | M79: 112.3 | N79: 114.7 | O79: 32.67 | P79: 0.7
A80: 273 | B80: Булочка Домашняя | E80: 75 | F80: 7.3 | G80: 11.7 | H80: 55.4 | I80: 358 | J80: 0 | K80: 0 | L80: 0 | M80: 0 | N80: 0 | O80: 0 | P80: 0
A81: 283 | B81: Чай с лимоном и с сахаром | E81: 207 | F81: 0.1 | G81: 0 | H81: 9.1 | I81: 35 | J81: 0 | K81: 0 | L81: 0 | M81: 3.25 | N81: 1.54 | O81: 0.84 | P81: 0.09
A82: СГР | B82: Хлеб пшеничный для детского питания | E82: 50 | F82: 4 | G82: 0 | H82: 7.81 | I82: 39.06 | J82: 0.07 | K82: 0 | L82: 0 | M82: 9.2 | N82: 34.8 | O82: 13.2 | P82: 0.8
B83: Фрукты | E83: 200 | F83: 1 | G83: 0 | H83: 7 | I83: 34 | J83: 0.05 | K83: 34.2 | L83: 0 | M83: 31.5 | N83: 15.3 | O83: 9.9 | P83: 0.09
B84: Итого за завтрак | F84: =SUM(F78:F83) -> 20.78 | G84: 21.62 | H84: 111.15 | I84: 715.82 | J84: 0.13 | K84: 34.317 | L84: 22.8 | M84: 256.25 | N84: 226.34 | O84: 62.11 | P84: 1.75
B85: Обед
A86: 19 | B86: Салат из моркови | E86: 80 | F86: 1.6 | G86: 7.2 | H86: 4.23 | I86: 74.4 | J86: 0 | K86: 0.07 | L86: 21 | M86: 100 | N86: 60 | O86: 5.5 | P86: 0.07
A87: 42 | B87: Борщ с капустой и картофелем на мясном бульоне со сметаной | E87: 210 | F87: 1.52 | G87: 5.33 | H87: 8.65 | I87: 88.89 | J87: 0.1 | K87: 24.92 | L87: 7.63 | M87: 46.02 | N87: 173.75 | O87: 39.96 | P87: 3.1
A88: 97 | B88: Жаркое по-домашнему | E88: 185 | F88: 18.4 | G88: 14.1 | H88: 18.1 | I88: 273.3 | J88: 0.15 | K88: 21.2 | L88: 0 | M88: 17.3 | N88: 152.04 | O88: 35 | P88: 2.27
A89: 294 | B89: Компот из сухофруктов | E89: 200 | F89: 0.12 | G89: 0 | H89: 19.4 | I89: 79.6 | J89: 0.07 | K89: 0.29 | L89: 0 | M89: 14.32 | N89: 0 | O89: 8.5 | P89: 0.92
A90: СГР | B90: Хлеб пшеничный | E90: 25 | F90: 2 | G90: 0 | H90: 10 | I90: 50 | J90: 0.04 | K90: 0 | L90: 0 | M90: 5.75 | N90: 21.75 | O90: 8.25 | P90: 0.5
A91: СГР | B91: Хлеб ржано-пшеничный | E91: 25 | F91: 2 | G91: 0 | H91: 10 | I91: 50 | J91: 0.04 | K91: 0 | L91: 0 | M91: 7.25 | N91: 32.5 | O91: 10.5 | P91: 0.9
B92: Итого за обед | F92: =SUM(F86:F91) -> 25.64 | G92: 26.63 | H92: 70.38 | I92: 616.19 | J92: 0.4 | K92: 46.48 | L92: 28.63 | M92: 190.64 | N92: 440.04 | O92: 107.71 | P92: 7.76
B93: Итого за день | F93: 46.42 | G93: 48.25 | H93: 181.53 | I93: 1332.01 | J93: 0.64 | K93: 86.44 | L93: 92.15 | M93: 396.46 | N93: 686.28 | O93: 197.36 | P93: 9.63
A95: День: пятница | E95: Сезон: 01.09-01.03 (2025-2026гг)
A96: Неделя: 1 | E96: Возраст: с 7 до 11 лет
A97: № | B97: Наименование блюда | E97: масса | F97: Пищевые вещества (г) | I97: энерге- | J97: Витамины | M97: Минеральные вещества (мг)
A98: рец. | E98: порций | F98: Б | G98: Ж | H98: У | I98: тическая | J98: В1 | K98: С | L98: А | M98: Са | N98: Р | O98: Мg | P98: Fe
I99: ценность
B100: Завтрак
A101: 33 | B101: Салат Пестрый | E101: 80 | F101: 0.8 | G101: 4 | H101: 8.3 | I101: 72 | J101: 0.01 | K101: 3.14 | L101: 0 | M101: 20.83 | N101: 30.15 | O101: 12.23 | P101: 1.13
A102: 112 | B102: Плов из говядины | E102: 180 | F102: 17.89 | G102: 17.34 | H102: 26.48 | I102: 336 | J102: 0.08 | K102: 1.35 | L102: 0 | M102: 14.02 | N102: 178.97 | O102: 41.8 | P102: 1.97
A103: 283 | B103: Чай с сахаром | E103: 200 | F103: 0.1 | G103: 0 | H103: 9.1 | I103: 35 | J103: 0.02 | K103: 0.65 | L103: 10 | M103: 60.3 | N103: 45 | O103: 7 | P103: 0.08
A104: СГР | B104: Хлеб пшеничный для детского питания | E104: 50 | F104: 4 | G104: 0 | H104: 7.81 | I104: 39.06 | J104: 0.07 | L104: 0 | M104: 9.2 | N104: 34.8 | O104: 13.2 | P104: 0.8
B105: Фрукты | E105: 200 | F105: 1 | G105: 0 | H105: 7 | I105: 34 | J105: 0.05 | K105: 34.2 | L105: 0 | M105: 31.5 | N105: 15.3 | O105: 9.9 | P105: 0.09
B106: Итого за завтрак | F106: =SUM(F101:F105) -> 23.79 | G106: 21.34 | H106: 58.69 | I106: 516.06 | J106: 0.23 | K106: 39.34 | L106: 10 | M106: 135.85 | N106: 304.22 | O106: 84.13 | P106: 4.07
B107: Обед
A108: 42 | B108: Винегрет | E108: 80 | F108: 1 | G108: 8.11 | H108: 6.66 | I108: 103.41 | J108: 0.03 | K108: 4.14 | L108: 0 | M108: 18.59 | N108: 12.93 | O108: 12.54 | P108: 0.54
A109: 56 | B109: Бишбармак | E109: 200 | F109: 2.08 | G109: 3.44 | H109: 9.28 | I109: 76.8 | J109: 0.09 | K109: 1.77 | L109: 10.15 | M109: 22.35 | N109: 175.47 | O109: 27.27 | P109: 2.83
A110: 80 | B110: Рыба тушеннная в томате с овощами | E110: 140 | F110: 18.13 | G110: 5.73 | H110: 4.44 | I110: 142.69 | J110: 0.09 | K110: 3.81 | L110: 6.2 | M110: 33 | N110: 166.16 | O110: 44.06 | P110: 0.78
A111: 138 | B111: Картофельное пюре | E111: 150 | F111: 3 | G111: 4.6 | H111: 20.1 | I111: 136.2 | J111: 0.06 | K111: 8.48 | L111: 0.73 | M111: 23.3 | N111: 0 | O111: 33.5 | P111: 2.52
A112: 295 | B112: Компот из плодов яблок | E112: 200 | F112: 0.2 | G112: 0 | H112: 17.2 | I112: 68 | J112: 0.01 | K112: 20.2 | L112: 0 | M112: 6.76 | N112: 4.4 | O112: 3.6 | P112: 0.92
A113: СГР | B113: Хлеб пшеничный | E113: 25 | F113: 2 | G113: 0 | H113: 10 | I113: 50 | J113: 0.04 | K113: 0 | L113: 0 | M113: 5.75 | N113: 21.75 | O113: 8.25 | P113: 0.5
A114: СГР | B114: Хлеб ржано-пшеничный | E114: 25 | F114: 2 | G114: 0 | H114: 10 | I114: 50 | J114: 0.04 | K114: 0 | L114: 0 | M114: 7.25 | N114: 32.5 | O114: 10.5 | P114: 0.9
B115: Итого за обед | F115: =SUM(F108:F114) -> 28.41 | G115: 21.88 | H115: 77.68 | I115: 627.1 | J115: 0.36 | K115: 38.4 | L115: 17.08 | M115: 117 | N115: 413.21 | O115: 139.72 | P115: 8.99
B116: Итого за день | F116: 44.42 | G116: 46.55 | H116: 142.65 | I116: 1167.73 | J116: 0.76 | K116: 124.81 | L116: 26.35 | M116: 271.91 | N116: 846.37 | O116: 237.56 | P116: 11.74
A119: День: понедельник | E119: Сезон: 01.09-01.03 (2025-2026гг)
A120: Неделя: 2 | E120: Возраст: с 7 до 11 лет
A121: № | B121: Наименование блюда | E121: масса | F121: Пищевые вещества (г) | I121: энерге- | J121: Витамины | M121: Минеральные вещества (мг)
A122: рец. | E122: порций | F122: Б | G122: Ж | H122: У | I122: тическая | J122: В1 | K122: С | L122: А | M122: Са | N122: Р | O122: Мg | P122: Fe
I123: ценность
B124: Завтрак
A125: 1 | B125: Сыр (порциями) | E125: 10 | F125: 2.44 | G125: 2.36 | H125: 0 | I125: 31 | J125: 0.02 | K125: 0.11 | L125: 21 | M125: 91.52 | N125: 60 | O125: 9.7 | P125: 0.04
A126: 98 | B126: Котлеты из говядины 90/40 | E126: 130 | F126: 13.09 | G126: 18.2 | H126: 13.4 | I126: 259.1 | J126: 0.07 | K126: 0.25 | L126: 40.5 | M126: 50.7 | N126: 162.2 | O126: 30.4 | P126: 1.41
A127: 212 | B127: Макаронные изделия отварные | E127: 155 | F127: 5.82 | G127: 4.31 | H127: 37.08 | I127: 210.5 | J127: 0.006 | K127: 0 | L127: 24 | M127: 11.15 | N127: 46.26 | O127: 8.18 | P127: 0.83
A128: 283 | B128: Чай с сахаром | E128: 200 | F128: 0.1 | G128: 0 | H128: 9.1 | I128: 35 | J128: 0 | K128: 0 | L128: 0 | M128: 0.45 | N128: 0 | O128: 0 | P128: 0.05
A129: СГР | B129: Хлеб пшеничный для детского питания | E129: 50 | F129: 4 | G129: 0 | H129: 7.81 | I129: 39.06 | J129: 0.07 | K129: 0 | L129: 0 | M129: 9.2 | N129: 34.8 | O129: 13.2 | P129: 0.8
B130: Фрукты | E130: 200 | F130: 1 | G130: 0 | H130: 7 | I130: 34 | J130: 0.05 | K130: 34.2 | L130: 0 | M130: 31.5 | N130: 15.3 | O130: 9.9 | P130: 0.09
B131: Итого за завтрак | F131: =SUM(F125:F130) -> 26.45 | G131: 24.87 | H131: 74.39 | I131: 608.66 | J131: 0.216 | K131: 34.56 | L131: 85.5 | M131: 194.52 | N131: 318.56 | O131: 71.38 | P131: 3.22
B132: Обед
A133: 27 | B133: Салат из свеклы с яблоками | E133: 80 | F133: 0.7 | G133: 4 | H133: 5.9 | I133: 62 | J133: 0.01 | K133: 3.16 | L133: 0 | M133: 18.32 | N133: 19.47 | O133: 10.14 | P133: 1.04
A134: 63 | B134: Суп картофельный с бобовыми на мясном бульоне | E134: 200 | F134: 7.9 | G134: 4.3 | H134: 31.5 | I134: 199 | J134: 0.22 | K134: 9.74 | L134: 0.11 | M134: 35.39 | N134: 190.3 | O134: 43.15 | P134: 3.26
A135: 94 | B135: Азу | E135: 100 | F135: 14.6 | G135: 20.1 | H135: 3.3 | I135: 252 | J135: 0.04 | K135: 1.62 | L135: 0 | M135: 8.79 | N135: 101.41 | O135: 15.23 | P135: 1.46
A136: 173 | B136: Каша гречневая рассыпчатая | E136: 155 | F136: 7.56 | G136: 4.7 | H136: 39 | I136: 228.63 | J136: 0.29 | L136: 24 | M136: 15.28 | N136: 208.03 | O136: 138.41 | P136: 4.65
A137: 311 | B137: Витаминизированный кисель | E137: 200 | F137: 0.25 | G137: 0 | H137: 4.8 | I137: 20 | J137: 0 | K137: 16.2 | L137: 0 | M137: 0.32 | N137: 0 | O137: 0 | P137: 0.03
A138: СГР | B138: Хлеб пшеничный | E138: 25 | F138: 2 | G138: 0 | H138: 10 | I138: 50 | J138: 0.04 | K138: 0 | L138: 0 | M138: 5.75 | N138: 21.75 | O138: 8.25 | P138: 0.5
A139: СГР | B139: Хлеб ржано-пшеничный | E139: 25 | F139: 2 | G139: 0 | H139: 10 | I139: 50 | J139: 0.04 | K139: 0 | L139: 0 | M139: 7.25 | N139: 32.5 | O139: 10.5 | P139: 0.9
B140: Итого за обед | F140: =SUM(F133:F139) -> 35.01 | G140: 33.1 | H140: 104.5 | I140: 861.63 | J140: 0.64 | K140: 30.72 | L140: 24.11 | M140: 91.1 | N140: 573.46 | O140: 225.68 | P140: 11.84
B141: Итого за день | F141: 58.44 | G141: 52.77 | H141: 228.63 | I141: 1410.52 | J141: 0.958 | K141: 67.28 | L141: 146.16 | M141: 410.43 | N141: 977.97 | O141: 304.51 | P141: 15.165
A143: День: вторник | E143: Сезон: 01.09-01.03 (2025-2026гг)
A144: Неделя: 2 | E144: Возраст: с 7 до 11 лет
A145: № | B145: Наименование блюда | E145: масса | F145: Пищевые вещества (г) | I145: энерге- | J145: Витамины | M145: Минеральные вещества (мг)
A146: рец. | E146: порций | F146: Б | G146: Ж | H146: У | I146: тическая | J146: В1 | K146: С | L146: А | M146: Са | N146: Р | O146: Мg | P146: Fe
I147: ценность
B148: Завтрак
A149: 3 | B149: Масло сливочное | E149: 10 | F149: 0.1 | G149: 7.13 | H149: 0.1 | I149: 66 | J149: 0 | K149: 0 | L149: 40 | M149: 2.4 | N149: 3 | O149: 0 | P149: 0.02
A150: 273 | B150: Булочка домашняя | E150: 75 | F150: 7.3 | G150: 11.7 | H150: 55.4 | I150: 358 | J150: 0.08 | K150: 10.64 | L150: 45.81 | M150: 15.51 | N150: 123.85 | O150: 25.73 | P150: 0.82
A151: 198 | B151: Каша пшенная молочная | E151: 185 | F151: 7.128 | G151: 8.81 | H151: 33.76 | I151: 243.5 | J151: 0.18 | K151: 0.5 | L151: 38 | M151: 124.74 | N151: 124.35 | O151: 43.56 | P151: 1.13
A152: 285 | B152: Чай с сахаром и с лимоном | E152: 207 | F152: 0.07 | G152: 0.01 | H152: 15.31 | I152: 61.62 | J152: 0 | K152: 0 | L152: 0 | M152: 3.25 | N152: 1.54 | O152: 0.84 | P152: 0.09
A153: СГР | B153: Хлеб пшеничный для детского питания | E153: 50 | F153: 4 | G153: 0 | H153: 7.81 | I153: 39.06 | J153: 0.09 | K153: 0 | L153: 0 | M153: 10.2 | N153: 35.8 | O153: 14.2 | P153: 1
B154: Фрукты | E154: 200 | F154: 1 | G154: 0 | H154: 7 | I154: 34 | J154: 0.05 | K154: 34.2 | L154: 0 | M154: 31.5 | N154: 15.3 | O154: 9.9 | P154: 0.09
B155: Итого за завтрак | F155: 19.598 | G155: 27.65 | H155: 119.38 | I155: 802.18 | J155: =SUM(J150:J154) -> 0.4 | K155: 45.34 | L155: 83.81 | M155: 185.2 | N155: 300.84 | O155: 94.23 | P155: 3.13
B156: Обед
A157: 22 | B157: Салат витаминный | E157: 80 | F157: 1.3 | G157: 3.6 | H157: 8.9 | I157: 72 | J157: 0.02 | K157: 12.3 | L157: 0 | M157: 34.2 | N157: 0 | O157: 0.02 | P157: 0.85
A158: 68 | B158: Свекольник на мясном бульоне со сметаной | E158: 210 | F158: 1.93 | G158: 6.34 | H158: 10.05 | I158: 104.16 | J158: 0.07 | K158: 15.21 | L158: 7.5 | M158: 32.53 | N158: 57.52 | O158: 25.98 | P158: 1.27
A159: 112 | B159: Плов из говядины | E159: 180 | F159: 17.89 | G159: 17.34 | H159: 26.48 | I159: 336 | J159: 0.08 | K159: 1.35 | L159: 0 | M159: 14.02 | N159: 178.97 | O159: 41.8 | P159: 1.97
A160: 295 | B160: Компот из плодов яблок | E160: 200 | F160: 0.2 | G160: 0 | H160: 17.2 | I160: 68 | J160: 0.01 | K160: 20.2 | L160: 0 | M160: 6.76 | N160: 4.4 | O160: 3.6 | P160: 0.92
A161: СГР | B161: Хлеб пшеничный | E161: 25 | F161: 2 | G161: 0 | H161: 10 | I161: 50 | J161: 0.04 | K161: 0 | L161: 0 | M161: 5.75 | N161: 21.75 | O161: 8.25 | P161: 0.5
A162: СГР | B162: Хлеб ржано-пшеничный | E162: 25 | F162: 2 | G162: 0 | H162: 10 | I162: 50 | J162: 0.04 | K162: 0 | L162: 0 | M162: 7.25 | N162: 32.5 | O162: 10.5 | P162: 0.9
B163: Итого за обед | F163: =SUM(F157:F162) -> 25.32 | G163: 27.28 | H163: 82.63 | I163: 680.16 | J163: 0.26 | K163: 49.06 | L163: 7.5 | M163: 100.51 | N163: 295.14 | O163: 90.15 | P163: 6.41
B164: Итого за день | F164: 44.918 | G164: 54.93 | H164: 202.01 | I164: 1482.34 | J164: 0.645 | K164: 85.5 | L164: 91.31 | M164: 292.27 | N164: 637.07 | O164: 190.21 | P164: 8.99
A166: День: среда | E166: Сезон: 01.09-01.03 (2025-2026гг)
A167: Неделя: 2 | E167: Возраст: с 7 до 11 лет
A168: № | B168: Наименование блюда | E168: масса | F168: Пищевые вещества (г) | I168: энерге- | J168: Витамины | M168: Минеральные вещества (мг)
A169: рец. | E169: порций | F169: Б | G169: Ж | H169: У | I169: тическая | J169: В1 | K169: С | L169: А | M169: Са | N169: Р | O169: Мg | P169: Fe
I170: ценность
B171: Завтрак
A172: 98 | B172: Котлеты из говядины | E172: 130 | F172: 13.09 | G172: 18.2 | H172: 13.4 | I172: 259.1 | J172: 0.05 | K172: 0.3 | L172: 0 | M172: 26.6 | N172: 121.66 | O172: 17.48 | P172: 0.46
A173: 138 | B173: Пюре картофельное | E173: 150 | F173: 3 | G173: 4.6 | H173: 20.1 | I173: 136.2 | J173: 0.12 | K173: 10.38 | L173: 28.8 | M173: 35.6 | N173: 98.22 | O173: 33.03 | P173: 1.2
A174: 289 | B174: Какао с молоком | E174: 200 | F174: 3.3 | G174: 3.1 | H174: 13.6 | I174: 94 | J174: 0.03 | K174: 0.52 | L174: 15.96 | M174: 110.37 | N174: 109.42 | O174: 26.97 | P174: 0.88
A175: СГР | B175: Хлеб пшеничный для детского питания | E175: 50 | F175: 4 | G175: 0 | H175: 7.81 | I175: 39.06 | J175: 0.09 | K175: 0 | L175: 0 | M175: 10.2 | N175: 35.8 | O175: 14.2 | P175: 1
B176: Фрукты | E176: 200 | F176: 1 | G176: 0 | H176: 7 | I176: 34 | J176: 0.05 | K176: 34.2 | L176: 0 | M176: 31.5 | N176: 15.3 | O176: 9.9 | P176: 0.09
B177: Итого за завтрак | F177: =SUM(F172:F176) -> 24.39 | G177: 25.9 | H177: 61.91 | I177: 562.36 | J177: 0.34 | K177: 45.4 | L177: 44.76 | M177: 214.27 | N177: 380.4 | O177: 101.58 | P177: 3.63
B178: Обед
A179: 40 | B179: Салат Степной | E179: 80 | F179: 1.28 | G179: 4.17 | H179: 7.01 | I179: 71.34 | J179: 0.05 | K179: 2.29 | L179: 2.4 | M179: 14.31 | N179: 12.3 | O179: 14.53 | P179: 0.45
A180: 65 | B180: Суп картофельный с крупой на мясном бульоне | E180: 210 | F180: 1.68 | G180: 4.48 | H180: 9.92 | I180: 30.4 | J180: 0.05 | K180: 5.6 | L180: 3.24 | M180: 12.39 | N180: 57.52 | O180: 19.2 | P180: 0.73
A181: 596 | B181: Рагу овощное с мясом | E181: 200 | F181: 12.4 | G181: 13.8 | H181: 10.5 | I181: 217 | J181: 0.09 | K181: 10.52 | L181: 8.9 | M181: 34.6 | N181: 27 | O181: 41.35 | P181: 2.54
A182: 294 | B182: Компот из сухофруктов | E182: 200 | F182: 0.12 | G182: 0 | H182: 19.4 | I182: 79.6 | J182: 0.07 | K182: 0.29 | L182: 0 | M182: 14.32 | N182: 0 | O182: 8.5 | P182: 0.92
A183: СГР | B183: Хлеб пшеничный | E183: 25 | F183: 2 | G183: 0 | H183: 10 | I183: 50 | J183: 0.04 | K183: 0 | L183: 0 | M183: 5.75 | N183: 21.75 | O183: 8.25 | P183: 0.5
A184: СГР | B184: Хлеб ржано-пшеничный | E184: 25 | F184: 2 | G184: 0 | H184: 10 | I184: 50 | J184: 0.04 | K184: 0 | L184: 0 | M184: 7.25 | N184: 32.5 | O184: 10.5 | P184: 0.9
B185: Итого за обед | F185: =SUM(F179:F184) -> 19.48 | G185: 22.45 | H185: 66.83 | I185: 498.34 | J185: 0.34 | K185: 18.7 | L185: 14.54 | M185: 88.62 | N185: 151.07 | O185: 102.33 | P185: 6.04
B186: Итого за день | F186: 40.57 | G186: 47.09 | H186: 125.36 | I186: 1033 | J186: 0.675 | K186: 105.48 | L186: 52.26 | M186: 317.57 | N186: 721.83 | O186: 221.52 | P186: 9.96
A188: День: четверг | E188: Сезон: 01.09-01.03 (2025-2026гг)
A189: Неделя: 2 | E189: Возраст: с 7 до 11 лет
A190: № | B190: Наименование блюда | E190: масса | F190: Пищевые вещества (г) | I190: энерге- | J190: Витамины | M190: Минеральные вещества (мг)
A191: рец. | E191: порций | F191: Б | G191: Ж | H191: У | I191: тическая | J191: В1 | K191: С | L191: А | M191: Са | N191: Р | O191: Мg | P191: Fe
I192: ценность
B193: Завтрак
A194: 3 | B194: Масло сливочное | E194: 10 | F194: 0.1 | G194: 7.13 | H194: 0.1 | I194: 66 | J194: 0 | K194: 0 | L194: 40 | M194: 2.4 | N194: 3 | O194: 0 | P194: 0.02
A195: 1 | B195: Сыр (порциями) | E195: 10 | F195: 2.44 | G195: 2.36 | H195: 0 | I195: 31 | J195: 0.02 | K195: 0.11 | L195: 21 | M195: 91.52 | N195: 60 | O195: 9.7 | P195: 0.04
A196: 198 | B196: Каша манная молочная | E196: 155 | F196: 3.8 | G196: 5.9 | H196: 17.6 | I196: 138 | J196: 0.04 | K196: 0.41 | L196: 1.7 | M196: 95.45 | N196: 208.03 | O196: 13.07 | P196: 0.24
A197: 301 | B197: Витаминный напиток | E197: 200 | F197: 0 | G197: 0 | H197: 15.8 | I197: 60 | J197: 0.3 | K197: 11.2 | L197: 170 | M197: 220 | N197: 4.2 | O197: 12.18 | P197: 0
A198: СГР | B198: Хлеб пшеничный для детского питания | E198: 50 | F198: 4 | G198: 0 | H198: 7.81 | I198: 39.06 | J198: 0.07 | K198: 0 | L198: 0 | M198: 9.2 | N198: 34.8 | O198: 13.2 | P198: 0.8
B199: Фрукты | E199: 200 | F199: 1 | G199: 0 | H199: 7 | I199: 34 | J199: 0.05 | K199: 34.2 | L199: 0 | M199: 31.5 | N199: 15.3 | O199: 9.9 | P199: 0.09
B200: Итого за завтрак | F200: =SUM(F194:F199) -> 11.34 | G200: =SUM(G194:G199) -> 15.39 | H200: =SUM(H194:H199) -> 48.31 | I200: =SUM(I194:I199) -> 368.06 | J200: =SUM(J194:J199) -> 0.48 | K200: 39.48 | L200: 56.4 | M200: 228.28 | N200: 363.21 | O200: 183.67 | P200: 6.14
B201: Обед
A202: 34 | B202: Салат Здоровье | E202: 80 | F202: 1.2 | G202: 4.1 | H202: 5.8 | I202: 64 | J202: 0.04 | K202: 5.39 | L202: 2.1 | M202: 19.95 | N202: 19.04 | O202: 18.95 | P202: 0.66
A203: 54 | B203: Рассольник ленинградский на мясном бульоне со сметаной | E203: 210 | F203: 4.024 | G203: 9.04 | H203: 25.9 | I203: 119.68 | J203: 0.12 | K203: 13.87 | L203: 7.62 | M203: 26.23 | N203: 171.85 | O203: 33.68 | P203: 2.58
A204: 96 | B204: Гуляш из отварной говядины | E204: 90 | F204: 11.35 | G204: 11.8 | H204: 2.1 | I204: 160.06 | J204: 0.05 | K204: 0.98 | L204: 0.12 | M204: 12.18 | N204: 138.26 | O204: 22.98 | P204: 2.6
A205: 212 | B205: Отварные макаронные изделия | E205: 155 | F205: 5.82 | G205: 4.31 | H205: 37.08 | I205: 210.5 | J205: 0.006 | K205: 0 | L205: 17.7 | M205: 9.31 | N205: 40.57 | O205: 7.31 | P205: 0.74
A206: 294 | B206: Компот из сухофруктов | E206: 200 | F206: 0.12 | G206: 0 | H206: 19.4 | I206: 79.6 | J206: 0.01 | K206: 20.2 | L206: 0 | M206: 6.76 | N206: 4.4 | O206: 3.6 | P206: 0.92
A207: СГР | B207: Хлеб пшеничный | E207: 25 | F207: 2 | G207: 0 | H207: 10 | I207: 50 | J207: 0.04 | K207: 0 | L207: 0 | M207: 5.75 | N207: 21.75 | O207: 8.25 | P207: 0.5
A208: СГР | B208: Хлеб ржано-пшеничный | E208: 25 | F208: 2 | G208: 0 | H208: 10 | I208: 50 | J208: 0.04 | K208: 0 | L208: 0 | M208: 7.25 | N208: 32.5 | O208: 10.5 | P208: 0.9
B209: Итого за обед | F209: =SUM(F202:F208) -> 26.514 | G209: 29.25 | H209: 110.28 | I209: 733.84 | J209: 0.306 | K209: 40.44 | L209: 27.54 | M209: 87.43 | N209: 428.37 | O209: 105.27 | P209: 8.9
B210: Итого за день | F210: 37.854 | G210: 44.64 | H210: 158.59 | I210: 1101.9 | J210: 1.25 | K210: 90.08 | L210: 115.18 | M210: 351.15 | N210: 784.61 | O210: 303.64 | P210: 13.31
A213: День: пятница | E213: Сезон: 01.09-01.03 (2025-2026гг)
... 23 more rows

Sheet Лист3
